fUSD/lending_fUSD_20250215
["ID","MTS","AMOUNT","RATE_DAILY","PERIOD"]
[353161475,1739616658061,-258.57,0.00011205,2]
[353161476,1739616658546,-500.0,0.00010958,2]
[353161477,1739616658557,-500.0,0.00010958,2]
[353161478,1739616658566,-500.0,0.0001104,2]
[353161479,1739616658575,-501.41079025,0.0001104,2]
[353161480,1739616658584,-66.2232946,0.00011099,2]
[353161481,1739616658774,-96.96253408,0.00011099,2]
[353161482,1739616658784,-114883.58122136,0.00011122,3]
[353161483,1739616658794,-241.43,0.00011205,2]
[353161484,1739616658804,-78.07353586,0.00011287,2]
[353161485,1739616658813,-880.12,0.00011287,2]
[353161486,1739616658822,-500.0,0.00011287,2]
[353161487,1739616658831,-255.38,0.00011287,2]
[353161488,1739616658841,-602.68,0.00011287,2]
[353161489,1739616658851,-500.0,0.00011287,2]
[353161490,1739616658860,-500.0,0.00011287,2]
[353161491,1739616658869,-500.0,0.00011287,2]
[353161492,1739616658878,-609.66,0.00011287,2]
[353161493,1739616658888,-740.64,0.00011287,2]
[353161494,1739616658898,-531.04,0.00011287,2]
[353161495,1739616658907,-293.25995474,0.00011287,2]
[353161496,1739616659104,-270.96810329,0.0001104,2]
[353161497,1739616659115,-287.08004526,0.00011287,2]
[353161498,1739616659124,-183.27,0.00011287,2]
[353161499,1739616659133,-500.0,0.00011287,2]
[353161500,1739616659143,-641.88,0.00011287,2]
[353161501,1739616659152,-500.0,0.00011287,2]
[353161502,1739616659166,-500.0,0.00011287,2]
[353161503,1739616659175,-500.0,0.00011287,2]
[353161504,1739616659184,-500.0,0.00011287,2]
[353161505,1739616659194,-449.3501644,0.00011291,2]
[353161506,1739616659205,-434.67426805,0.00011319,2]
[353161507,1739616659217,-394.49545199,0.00011319,2]
[353161508,1739616659233,-170.83027996,0.00011319,2]
[353161509,1739616659244,-1000.0,0.00011319,2]
[353161510,1739616659255,-572.47332004,0.00011319,2]
[353161511,1739616659266,-427.52667996,0.00011319,2]
[353161512,1739616659275,-101.21507212,0.00011319,2]
[353161513,1739616659287,-605.01064536,0.00011319,2]
[353161514,1739616659298,-293.77428252,0.00011319,2]
[353161515,1739616659307,-1000.0,0.00011319,2]
[353161516,1739616659316,-1000.0,0.00011319,2]
[353161517,1739616659325,-1000.0,0.00011319,2]
[353161518,1739616659335,-1000.0,0.00011319,2]
[353161519,1739616659343,-1000.0,0.00011319,2]
[353161520,1739616659354,-1000.0,0.00011319,2]
[353161521,1739616659363,-1695.7553062,0.00011339,2]
[353161522,1739616659373,-503.91,0.00011369,2]
[353161523,1739616659382,-500.0,0.00011369,2]
[353161524,1739616659392,-500.0,0.00011369,2]
[353161525,1739616659402,-500.0,0.00011369,2]
[353161526,1739616659411,-500.0,0.00011369,2]
[353161527,1739616659420,-500.0,0.00011369,2]
[353161528,1739616659429,-334.86,0.00011369,2]
[353161529,1739616659439,-500.0,0.00011369,2]
[353161530,1739616659448,-500.0,0.00011369,2]
[353161531,1739616659457,-500.0,0.00011369,2]
[353161532,1739616659466,-361.51,0.00011369,2]
[353161533,1739616659475,-500.0,0.00011369,2]
[353161534,1739616659484,-155.21,0.00011369,2]
[353161535,1739616659493,-500.0,0.00011369,2]
[353161536,1739616659503,-522.14,0.00011369,2]
[353161537,1739616659511,-500.0,0.00011369,2]
[353161538,1739616659521,-551.2,0.00011369,2]
[353161539,1739616659530,-500.0,0.00011369,2]
[353161540,1739616659539,-255.83,0.00011369,2]
[353161541,1739616659548,-500.0,0.00011369,2]
[353161542,1739616659558,-500.0,0.00011369,2]
[353161543,1739616659567,-493.26,0.00011369,2]
[353161544,1739616659577,-500.0,0.00011369,2]
[353161545,1739616659586,-468.30452044,0.00011369,2]
[353161546,1739616659602,-31.69547956,0.00011369,2]
[353161547,1739616659611,-500.0,0.00011369,2]
[353161548,1739616659620,-500.0,0.00011369,2]
[353161549,1739616659629,-500.0,0.00011369,2]
[353161550,1739616659638,-500.0,0.00011369,2]
[353161551,1739616659648,-500.0,0.00011369,2]
[353161552,1739616659657,-500.0,0.00011369,2]
[353161553,1739616659666,-500.0,0.00011369,2]
[353161554,1739616659675,-589.13,0.00011369,2]
[353161555,1739616659684,-500.0,0.00011369,2]
[353161556,1739616659693,-500.0,0.00011369,2]
[353161557,1739616659703,-500.0,0.00011369,2]
[353161558,1739616659856,-194.1,0.00011369,2]
[353161559,1739616659866,-500.0,0.00011369,2]
[353161560,1739616659875,-500.0,0.00011369,2]
[353161561,1739616659885,-500.0,0.00011369,2]
[353161562,1739616659894,-500.0,0.00011369,2]
[353161563,1739616659903,-500.0,0.00011369,2]
[353161564,1739616659913,-500.0,0.00011369,2]
[353161565,1739616659922,-500.0,0.00011369,2]
[353161566,1739616659932,-500.0,0.00011369,2]
[353161567,1739616659941,-500.0,0.00011369,2]
[353161568,1739616659951,-500.0,0.00011369,2]
[353161569,1739616659961,-500.0,0.00011369,2]
[353161570,1739616659970,-500.0,0.00011369,2]
[353161571,1739616659980,-245.22,0.00011369,2]
[353161572,1739616659990,-500.0,0.00011369,2]
[353161573,1739616659999,-500.0,0.00011369,2]
[353161574,1739616660010,-500.0,0.00011369,2]
[353161575,1739616660020,-500.0,0.00011369,2]
[353161576,1739616660030,-500.0,0.00011369,2]
[353161577,1739616660045,-529.88,0.00011369,2]
[353161578,1739616660056,-500.0,0.00011369,2]
[353161579,1739616660066,-500.0,0.00011369,2]
[353161580,1739616660076,-500.0,0.00011369,2]
[353161581,1739616660085,-500.0,0.00011369,2]
[353161582,1739616660096,-500.0,0.00011369,2]
[353161583,1739616660108,-500.0,0.00011369,2]
[353161584,1739616660118,-500.0,0.00011369,2]
[353161585,1739616660128,-500.0,0.00011369,2]
[353161586,1739616660138,-500.0,0.00011369,2]
[353161587,1739616660147,-506.08,0.00011369,2]
[353161588,1739616660159,-560.14,0.00011369,2]
[353161589,1739616660169,-500.0,0.00011369,2]
[353161590,1739616660178,-500.0,0.00011369,2]
[353161591,1739616660188,-428.71,0.00011369,2]
[353161592,1739616660198,-500.0,0.00011369,2]
[353161593,1739616660207,-500.0,0.00011369,2]
[353161594,1739616660218,-500.0,0.00011369,2]
[353161595,1739616660227,-500.0,0.00011369,2]
[353161596,1739616660238,-500.0,0.00011369,2]
[353161597,1739616660248,-500.0,0.00011369,2]
[353161598,1739616660258,-500.0,0.00011369,2]
[353161599,1739616660267,-500.0,0.00011369,2]
[353161600,1739616660276,-500.0,0.00011369,2]
[353161601,1739616660286,-500.0,0.00011369,2]
[353161602,1739616660296,-500.0,0.00011369,2]
[353161603,1739616660307,-500.0,0.00011369,2]
[353161604,1739616660316,-500.0,0.00011369,2]
[353161605,1739616660327,-500.0,0.00011369,2]
[353161606,1739616660339,-166.21,0.00011369,2]
[353161607,1739616660348,-500.0,0.00011369,2]
[353161608,1739616660359,-500.0,0.00011369,2]
[353161609,1739616660368,-402.94,0.00011369,2]
[353161610,1739616660377,-500.0,0.00011369,2]
[353161611,1739616660387,-500.0,0.00011369,2]
[353161612,1739616660396,-500.0,0.00011369,2]
[353161613,1739616660406,-500.0,0.00011369,2]
[353161614,1739616660416,-500.0,0.00011369,2]
[353161615,1739616660425,-500.0,0.00011369,2]
[353161616,1739616660435,-500.0,0.00011369,2]
[353161617,1739616660444,-443.92,0.00011369,2]
[353161618,1739616660454,-500.0,0.00011369,2]
[353161619,1739616660464,-587.32,0.00011369,2]
[353161620,1739616660473,-500.0,0.00011369,2]
[353161621,1739616660483,-500.0,0.00011369,2]
[353161622,1739616660494,-500.0,0.00011369,2]
[353161623,1739616660504,-500.0,0.00011369,2]
[353161624,1739616660513,-500.0,0.00011369,2]
[353161625,1739616660523,-500.0,0.00011369,2]
[353161626,1739616660533,-500.0,0.00011369,2]
[353161627,1739616660542,-500.0,0.00011369,2]
[353161628,1739616660551,-500.0,0.00011369,2]
[353161629,1739616660561,-500.0,0.00011369,2]
[353161630,1739616660571,-500.0,0.00011369,2]
[353161631,1739616660580,-500.0,0.00011369,2]
[353161632,1739616660589,-500.0,0.00011369,2]
[353161633,1739616660599,-500.0,0.00011369,2]
[353161634,1739616660610,-500.0,0.00011369,2]
[353161635,1739616660619,-446.41,0.00011369,2]
[353161636,1739616660628,-502.492315,0.00011369,2]
[353161637,1739616660637,-500.0,0.00011369,2]
[353161638,1739616660646,-406.85,0.00011369,2]
[353161639,1739616660655,-467.82,0.00011369,2]
[353161640,1739616660664,-500.0,0.00011369,2]
[353161641,1739616660673,-500.0,0.00011369,2]
[353161642,1739616660683,-500.0,0.00011369,2]
[353161643,1739616660692,-500.0,0.00011369,2]
[353161644,1739616660701,-500.0,0.00011369,2]
[353161645,1739616660710,-500.0,0.00011369,2]
[353161646,1739616660720,-500.0,0.00011369,2]
[353161647,1739616660729,-500.0,0.00011369,2]
[353161648,1739616660739,-500.0,0.00011369,2]
[353161649,1739616660748,-500.0,0.00011369,2]
[353161650,1739616660758,-500.0,0.00011369,2]
[353161651,1739616660768,-500.0,0.00011369,2]
[353161652,1739616660777,-500.0,0.00011369,2]
[353161653,1739616660787,-500.0,0.00011369,2]
[353161654,1739616660797,-500.0,0.00011369,2]
[353161655,1739616660807,-898.91,0.00011369,2]
[353161656,1739616660816,-504.767067,0.00011369,2]
[353161657,1739616660826,-500.0,0.00011369,2]
[353161658,1739616660836,-500.0,0.00011369,2]
[353161659,1739616660845,-351.35,0.00011369,2]
[353161660,1739616660856,-381.85,0.00011369,2]
[353161661,1739616660865,-500.0,0.00011369,2]
[353161662,1739616660875,-500.0,0.00011369,2]
[353161663,1739616660885,-500.0,0.00011369,2]
[353161664,1739616660894,-500.0,0.00011369,2]
[353161665,1739616660904,-500.0,0.00011369,2]
[353161666,1739616660913,-500.0,0.00011369,2]
[353161667,1739616660923,-500.0,0.00011369,2]
[353161668,1739616660932,-425.15,0.00011369,2]
[353161669,1739616660942,-500.0,0.00011369,2]
[353161670,1739616660951,-500.0,0.00011369,2]
[353161671,1739616660962,-500.0,0.00011369,2]
[353161673,1739616660971,-550.36,0.00011369,2]
[353161674,1739616660981,-500.0,0.00011369,2]
[353161675,1739616660990,-500.0,0.00011369,2]
[353161676,1739616661000,-500.0,0.00011369,2]
[353161678,1739616661011,-594.47,0.00011369,2]
[353161679,1739616661021,-695.56,0.00011369,2]
[353161680,1739616661030,-572.94,0.00011369,2]
[353161681,1739616661039,-2223.28,0.00011369,2]
[353161682,1739616661049,-1025.03,0.00011369,2]
[353161683,1739616661059,-1347.75,0.00011369,2]
[353161684,1739616661069,-1000.0,0.00011369,2]
[353161685,1739616661079,-500.0,0.00011369,2]
[353161686,1739616661088,-500.0,0.00011369,2]
[353161687,1739616661097,-772.56,0.00011369,2]
[353161688,1739616661109,-500.0,0.00011369,2]
[353161689,1739616661119,-500.0,0.00011369,2]
[353161690,1739616661128,-500.0,0.00011369,2]
[353161691,1739616661138,-762.61,0.00011369,2]
[353161692,1739616661148,-500.0,0.00011369,2]
[353161693,1739616661158,-500.0,0.00011369,2]
[353161694,1739616661172,-500.0,0.00011369,2]
[353161695,1739616661182,-500.0,0.00011369,2]
[353161696,1739616661191,-699.19,0.00011369,2]
[353161697,1739616661200,-500.0,0.00011369,2]
[353161698,1739616661210,-500.0,0.00011369,2]
[353161699,1739616661219,-813.59,0.00011369,2]
[353161700,1739616661230,-638.31,0.00011369,2]
[353161701,1739616661241,-1015.87,0.00011369,2]
[353161702,1739616661251,-500.0,0.00011369,2]
[353161703,1739616661259,-382.38,0.00011369,2]
[353161704,1739616661268,-517.2,0.00011369,2]
[353161705,1739616661277,-500.0,0.00011369,2]
[353161706,1739616661286,-741.58,0.00011369,2]
[353161707,1739616661296,-500.0,0.00011369,2]
[353161708,1739616661305,-500.0,0.00011369,2]
[353161709,1739616661314,-500.0,0.00011369,2]
[353161710,1739616661324,-420.58,0.00011369,2]
[353161711,1739616661333,-618.6,0.00011369,2]
[353161712,1739616661342,-543.95,0.00011369,2]
[353161713,1739616661353,-500.0,0.00011369,2]
[353161714,1739616661363,-500.0,0.00011369,2]
[353161715,1739616661372,-500.0,0.00011369,2]
[353161716,1739616661381,-500.0,0.00011369,2]
[353161717,1739616661391,-454.84,0.00011369,2]
[353161718,1739616661400,-812.05,0.00011369,2]
[353161719,1739616661410,-588.30702584,0.00011369,2]
[353161720,1739616661424,-98.97297416,0.00011369,2]
[353161721,1739616661433,-690.03,0.00011369,2]
[353161722,1739616661443,-500.0,0.00011369,2]
[353161723,1739616661451,-1075.31,0.00011369,2]
[353161724,1739616661460,-500.0,0.00011369,2]
[353161725,1739616661469,-500.0,0.00011369,2]
[353161726,1739616661478,-500.0,0.00011369,2]
[353161727,1739616661487,-500.0,0.00011369,2]
[353161728,1739616661496,-521.77,0.00011369,2]
[353161729,1739616661506,-500.0,0.00011369,2]
[353161730,1739616661515,-500.0,0.00011369,2]
[353161731,1739616661524,-727.07,0.00011369,2]
[353161732,1739616661534,-500.0,0.00011369,2]
[353161733,1739616661542,-541.16,0.00011369,2]
[353161734,1739616661552,-500.0,0.00011369,2]
[353161735,1739616661561,-849.63,0.00011369,2]
[353161736,1739616661572,-500.0,0.00011369,2]
[353161737,1739616661581,-500.27,0.00011369,2]
[353161738,1739616661590,-190.82,0.00011369,2]
[353161739,1739616661599,-500.0,0.00011369,2]
[353161740,1739616661609,-594.64,0.00011369,2]
[353161741,1739616661619,-782.95,0.00011369,2]
[353161742,1739616661628,-688.09,0.00011369,2]
[353161743,1739616661637,-895.18,0.00011369,2]
[353161744,1739616661646,-500.0,0.00011369,2]
[353161745,1739616661655,-500.0,0.00011369,2]
[353161746,1739616661664,-500.0,0.00011369,2]
[353161747,1739616661674,-309.0,0.00011369,2]
[353161748,1739616661684,-282.46,0.00011369,2]
[353161749,1739616661694,-513.87,0.00011369,2]
[353161750,1739616661704,-500.0,0.00011369,2]
[353161751,1739616661713,-693.05,0.00011369,2]
[353161752,1739616661722,-522.62,0.00011369,2]
[353161753,1739616661732,-1046.56,0.00011369,2]
[353161754,1739616661741,-500.0,0.00011369,2]
[353161755,1739616661750,-500.0,0.00011369,2]
[353161756,1739616661759,-500.0,0.00011369,2]
[353161757,1739616661769,-880.12,0.00011369,2]
[353161758,1739616661777,-500.0,0.00011369,2]
[353161759,1739616661787,-602.68,0.00011369,2]
[353161760,1739616661796,-500.0,0.00011369,2]
[353161761,1739616661806,-500.0,0.00011369,2]
[353161762,1739616661816,-500.0,0.00011369,2]
[353161763,1739616661826,-740.64,0.00011369,2]
[353161764,1739616661836,-531.04,0.00011369,2]
[353161765,1739616661845,-500.0,0.00011369,2]
[353161766,1739616661856,-500.0,0.00011369,2]
[353161767,1739616661866,-500.0,0.00011369,2]
[353161768,1739616661877,-500.0,0.00011369,2]
[353161769,1739616661889,-384.26,0.00011369,2]
[353161770,1739616661900,-1695.7553062,0.00011399,2]
[353161771,1739616661910,-153.25625118,0.00011399,2]
[353161772,1739616661921,-583.86432168,0.00011399,2]
[353161773,1739616661933,-3223.52929961,0.00011399,2]
[353161774,1739616661943,-17183.75691412,0.00011399,2]
[353161775,1739616661953,-174.57563819,0.00011399,2]
[353161776,1739616661963,-900.0,0.00011438,2]
[353161777,1739616661973,-1000.0,0.00011438,2]
[353161778,1739616661984,-1000.0,0.00011445,2]
[353161779,1739616661994,-500.0,0.0001145,2]
[353161780,1739616662003,-709.04,0.0001145,2]
[353161781,1739616662013,-500.0,0.00011451,2]
[353161782,1739616662022,-500.0,0.00011451,2]
[353161783,1739616662031,-500.0,0.00011451,2]
[353161784,1739616662040,-500.0,0.00011451,2]
[353161785,1739616662049,-500.0,0.00011451,2]
[353161786,1739616662059,-500.0,0.00011451,2]
[353161787,1739616662068,-500.0,0.00011451,2]
[353161788,1739616662078,-500.0,0.00011451,2]
[353161789,1739616662087,-500.0,0.00011451,2]
[353161790,1739616662097,-500.0,0.00011451,2]
[353161791,1739616662113,-500.0,0.00011451,2]
[353161792,1739616662123,-500.0,0.00011451,2]
[353161793,1739616662132,-500.0,0.00011451,2]
[353161794,1739616662141,-292.82,0.00011451,2]
[353161795,1739616662151,-500.0,0.00011451,2]
[353161796,1739616662165,-500.0,0.00011451,2]
[353161797,1739616662175,-218.23,0.00011451,2]
[353161798,1739616662184,-500.0,0.00011451,2]
[353161799,1739616662193,-500.0,0.00011451,2]
[353161800,1739616662203,-500.0,0.00011451,2]
[353161801,1739616662212,-500.0,0.00011451,2]
[353161802,1739616662222,-500.0,0.00011451,2]
[353161803,1739616662232,-500.0,0.00011451,2]
[353161804,1739616662243,-500.0,0.00011451,2]
[353161805,1739616662252,-500.0,0.00011451,2]
[353161806,1739616662261,-500.0,0.00011451,2]
[353161807,1739616662271,-500.0,0.00011451,2]
[353161808,1739616662407,-500.0,0.00011451,2]
[353161809,1739616662418,-470.36,0.00011451,2]
[353161810,1739616662427,-500.0,0.00011451,2]
[353161811,1739616662437,-500.0,0.00011451,2]
[353161812,1739616662447,-500.0,0.00011451,2]
[353161813,1739616662456,-500.0,0.00011451,2]
[353161814,1739616662465,-500.0,0.00011451,2]
[353161815,1739616662474,-500.0,0.00011451,2]
[353161816,1739616662484,-500.0,0.00011451,2]
[353161817,1739616662494,-500.0,0.00011451,2]
[353161818,1739616662503,-356.53,0.00011451,2]
[353161819,1739616662512,-500.0,0.00011451,2]
[353161820,1739616662522,-632.09,0.00011451,2]
[353161821,1739616662531,-500.0,0.00011451,2]
[353161822,1739616662540,-500.0,0.00011451,2]
[353161823,1739616662549,-500.0,0.00011451,2]
[353161824,1739616662558,-500.0,0.00011451,2]
[353161825,1739616662567,-500.0,0.00011451,2]
[353161826,1739616662576,-500.0,0.00011451,2]
[353161827,1739616662585,-500.0,0.00011451,2]
[353161828,1739616662594,-500.0,0.00011451,2]
[353161829,1739616662604,-500.0,0.00011451,2]
[353161830,1739616662614,-500.0,0.00011451,2]
[353161831,1739616662623,-500.0,0.00011451,2]
[353161832,1739616662632,-500.0,0.00011451,2]
[353161833,1739616662641,-500.0,0.00011451,2]
[353161834,1739616662650,-500.0,0.00011451,2]
[353161835,1739616662659,-500.0,0.00011451,2]
[353161836,1739616662668,-500.0,0.00011451,2]
[353161837,1739616662678,-500.0,0.00011451,2]
[353161838,1739616662687,-500.0,0.00011451,2]
[353161839,1739616662696,-500.0,0.00011451,2]
[353161840,1739616662705,-500.0,0.00011451,2]
[353161841,1739616662714,-500.0,0.00011451,2]
[353161842,1739616662723,-562.93,0.00011451,2]
[353161843,1739616662732,-500.0,0.00011451,2]
[353161844,1739616662741,-500.0,0.00011451,2]
[353161845,1739616662750,-695.56,0.00011451,2]
[353161846,1739616662759,-572.94,0.00011451,2]
[353161847,1739616662768,-1025.03,0.00011451,2]
[353161848,1739616662776,-1145.77685961,0.00011451,2]
[353161849,1739616662786,-500.0,0.00011451,2]
[353161850,1739616662795,-500.0,0.00011451,2]
[353161851,1739616662804,-772.56,0.00011451,2]
[353161852,1739616662813,-500.0,0.00011451,2]
[353161853,1739616662822,-512.29,0.00011451,2]
[353161854,1739616662831,-500.0,0.00011451,2]
[353161855,1739616662841,-699.19,0.00011451,2]
[353161856,1739616662850,-1015.87,0.00011451,2]
[353161857,1739616662861,-517.2,0.00011451,2]
[353161858,1739616662871,-500.0,0.00011451,2]
[353161859,1739616662881,-290.22,0.00011451,2]
[353161860,1739616662890,-618.6,0.00011451,2]
[353161861,1739616662900,-500.0,0.00011451,2]
[353161862,1739616662910,-500.0,0.00011451,2]
[353161863,1739616662919,-690.03,0.00011451,2]
[353161864,1739616662929,-500.0,0.00011451,2]
[353161865,1739616662938,-1075.31,0.00011451,2]
[353161866,1739616662947,-297.08,0.00011451,2]
[353161867,1739616662957,-430.56,0.00011451,2]
[353161868,1739616662967,-500.0,0.00011451,2]
[353161869,1739616662976,-500.0,0.00011451,2]
[353161870,1739616662985,-500.0,0.00011451,2]
[353161871,1739616662995,-500.0,0.00011451,2]
[353161872,1739616663005,-500.27,0.00011451,2]
[353161873,1739616663015,-500.0,0.00011451,2]
[353161874,1739616663025,-782.95,0.00011451,2]
[353161875,1739616663034,-400.02,0.00011451,2]
[353161876,1739616663045,-500.0,0.00011451,2]
[353161877,1739616663054,-513.87,0.00011451,2]
[353161878,1739616663064,-1046.56,0.00011451,2]
[353161879,1739616663074,-406.88,0.00011451,2]
[353161880,1739616663083,-500.0,0.00011451,2]
[353161881,1739616663092,-602.68,0.00011451,2]
[353161882,1739616663103,-500.0,0.00011451,2]
[353161883,1739616663113,-740.64,0.00011451,2]
[353161884,1739616663122,-500.0,0.00011451,2]
[353161885,1739616663131,-503.91,0.00011452,2]
[353161886,1739616663141,-500.0,0.00011452,2]
[353161887,1739616663150,-228.24,0.00011452,2]
[353161888,1739616663161,-248.9,0.00011452,2]
[353161889,1739616663175,-309.36,0.00011452,2]
[353161890,1739616663185,-500.0,0.00011452,2]
[353161891,1739616663194,-500.0,0.00011452,2]
[353161892,1739616663204,-500.0,0.00011452,2]
[353161893,1739616663215,-500.0,0.00011452,2]
[353161894,1739616663226,-424.0,0.00011452,2]
[353161895,1739616663236,-363.65,0.00011452,2]
[353161896,1739616663245,-500.0,0.00011452,2]
[353161897,1739616663258,-500.0,0.00011452,2]
[353161898,1739616663268,-500.0,0.00011452,2]
[353161899,1739616663278,-500.0,0.00011452,2]
[353161900,1739616663287,-494.82,0.00011452,2]
[353161901,1739616663297,-500.0,0.00011452,2]
[353161902,1739616663307,-259.55,0.00011452,2]
[353161903,1739616663316,-471.06,0.00011452,2]
[353161904,1739616663327,-500.0,0.00011452,2]
[353161905,1739616663336,-500.0,0.00011452,2]
[353161906,1739616663346,-500.0,0.00011452,2]
[353161907,1739616663359,-500.0,0.00011452,2]
[353161908,1739616663370,-500.0,0.00011452,2]
[353161909,1739616663380,-531.58,0.00011452,2]
[353161910,1739616663390,-500.0,0.00011452,2]
[353161911,1739616663401,-437.46,0.00011452,2]
[353161912,1739616663411,-500.0,0.00011452,2]
[353161913,1739616663421,-500.0,0.00011452,2]
[353161914,1739616663433,-365.36,0.00011452,2]
[353161915,1739616663443,-500.0,0.00011452,2]
[353161916,1739616663453,-500.0,0.00011452,2]
[353161917,1739616663463,-500.0,0.00011452,2]
[353161918,1739616663473,-500.0,0.00011452,2]
[353161919,1739616663482,-439.74,0.00011452,2]
[353161920,1739616663492,-380.05,0.00011452,2]
[353161921,1739616663502,-500.0,0.00011452,2]
[353161922,1739616663512,-500.0,0.00011452,2]
[353161923,1739616663522,-500.0,0.00011452,2]
[353161924,1739616663540,-362.08,0.00011452,2]
[353161925,1739616663556,-500.0,0.00011452,2]
[353161926,1739616663571,-500.0,0.00011452,2]
[353161927,1739616663587,-500.0,0.00011452,2]
[353161928,1739616663606,-500.0,0.00011452,2]
[353161929,1739616663620,-500.0,0.00011452,2]
[353161930,1739616663634,-342.12,0.00011452,2]
[353161931,1739616663649,-502.492315,0.00011452,2]
[353161932,1739616663665,-500.0,0.00011452,2]
[353161933,1739616663681,-500.0,0.00011452,2]
[353161934,1739616663697,-500.0,0.00011452,2]
[353161935,1739616663712,-207.92,0.00011452,2]
[353161936,1739616663728,-500.0,0.00011452,2]
[353161937,1739616663743,-500.0,0.00011452,2]
[353161938,1739616663758,-500.0,0.00011452,2]
[353161939,1739616663774,-500.0,0.00011452,2]
[353161940,1739616663788,-898.91,0.00011452,2]
[353161941,1739616663801,-504.767067,0.00011452,2]
[353161942,1739616663814,-210.45,0.00011452,2]
[353161943,1739616663831,-500.0,0.00011452,2]
[353161944,1739616663842,-500.0,0.00011452,2]
[353161945,1739616663855,-500.0,0.00011452,2]
[353161946,1739616663871,-500.0,0.00011452,2]
[353161947,1739616663883,-500.0,0.00011452,2]
[353161948,1739616663895,-550.36,0.00011452,2]
[353161949,1739616663910,-500.0,0.00011452,2]
[353161950,1739616663924,-594.47,0.00011452,2]
[353161951,1739616663938,-2223.28,0.00011452,2]
[353161952,1739616663952,-1347.75,0.00011452,2]
[353161953,1739616663968,-500.0,0.00011452,2]
[353161954,1739616663982,-762.61,0.00011452,2]
[353161955,1739616663995,-500.0,0.00011452,2]
[353161956,1739616664008,-500.0,0.00011452,2]
[353161957,1739616664025,-500.0,0.00011452,2]
[353161958,1739616664039,-500.0,0.00011452,2]
[353161959,1739616664052,-500.0,0.00011452,2]
[353161960,1739616664065,-813.59,0.00011452,2]
[353161961,1739616664077,-638.31,0.00011452,2]
[353161962,1739616664090,-500.0,0.00011452,2]
[353161963,1739616664105,-741.58,0.00011452,2]
[353161964,1739616664118,-500.0,0.00011452,2]
[353161965,1739616664132,-500.0,0.00011452,2]
[353161966,1739616664145,-543.95,0.00011452,2]
[353161967,1739616664159,-500.0,0.00011452,2]
[353161968,1739616664175,-500.0,0.00011452,2]
[353161969,1739616664188,-812.05,0.00011452,2]
[353161970,1739616664201,-687.28,0.00011452,2]
[353161971,1739616664215,-500.0,0.00011452,2]
[353161972,1739616664228,-500.0,0.00011452,2]
[353161973,1739616664244,-500.0,0.00011452,2]
[353161974,1739616664257,-521.77,0.00011452,2]
[353161975,1739616664271,-727.07,0.00011452,2]
[353161976,1739616664284,-541.16,0.00011452,2]